fUST/lending_fUST_20250208
["ID","MTS","AMOUNT","RATE_DAILY","PERIOD"]
[352198161,1738991450864,-500.0,0.00011095,2]
[352198162,1738991450873,-500.0,0.00011095,2]
[352198163,1738991450883,-500.0,0.00011095,2]
[352198164,1738991450892,-500.0,0.00011095,2]
[352198165,1738991450902,-2334.23,0.00011095,2]
[352198166,1738991450915,-500.0,0.00011095,2]
[352198167,1738991450925,-507.70348631,0.00011095,2]
[352198168,1738991450934,-500.0,0.00011095,2]
[352198169,1738991450944,-11974.57,0.00011095,2]
[352198170,1738991450955,-2755.31,0.00011095,2]
[352198171,1738991450965,-500.0,0.00011095,2]
[352198172,1738991450974,-500.0,0.00011095,2]
[352198173,1738991450985,-505.56373186,0.00011095,2]
[352198174,1738991450996,-500.0,0.00011095,2]
[352198175,1738991451006,-151.0,0.000111,2]
[352198176,1738991451020,-381.677394,0.00011232,2]
[352198177,1738991451030,-381.677394,0.00011232,2]
[352198178,1738991451042,-245.891828,0.00011232,2]
[352198179,1738991451052,-500.0,0.00011232,2]
[352198180,1738991451062,-500.0,0.00011232,2]
[352198181,1738991451072,-502.99304166,0.00011232,2]
[352198182,1738991451082,-500.0,0.00011232,2]
[352198183,1738991451092,-500.0,0.00011232,2]
[352198184,1738991451103,-500.0,0.00011232,2]
[352198185,1738991451114,-500.0,0.00011232,2]
[352198186,1738991451124,-500.0,0.00011232,2]
[352198187,1738991451134,-500.0,0.00011232,2]
[352198188,1738991451145,-500.0,0.00011232,2]
[352198189,1738991451155,-151.0,0.00011232,2]
[352198190,1738991451165,-500.0,0.00011232,2]
[352198191,1738991451175,-500.0,0.00011232,2]
[352198192,1738991451185,-500.0,0.00011232,2]
[352198193,1738991451195,-500.0,0.00011232,2]
[352198194,1738991451204,-355.262974,0.00011232,2]
[352198195,1738991451215,-355.262974,0.00011232,2]
[352198196,1738991451225,-500.0,0.00011232,2]
[352198197,1738991451235,-500.0,0.00011232,2]
[352198198,1738991451245,-500.0,0.00011232,2]
[352198199,1738991451255,-151.0,0.00011232,2]
[352198200,1738991451265,-546.46343074,0.00011232,2]
[352198201,1738991451274,-151.0,0.00011232,2]
[352198202,1738991451284,-151.0,0.00011232,2]
[352198203,1738991451294,-151.0,0.00011232,2]
[352198204,1738991451304,-227.613648,0.00011232,2]
[352198205,1738991451314,-151.0,0.00011232,2]
[352198206,1738991451323,-500.0,0.00011232,2]
[352198207,1738991451333,-500.0,0.00011232,2]
[352198208,1738991451343,-500.0,0.00011232,2]
[352198209,1738991451353,-500.0,0.00011232,2]
[352198210,1738991451363,-502.71699891,0.00011232,2]
[352198211,1738991451373,-500.0,0.00011232,2]
[352198212,1738991451382,-500.0,0.00011232,2]
[352198213,1738991451392,-500.0,0.00011232,2]
[352198214,1738991451402,-500.0,0.00011232,2]
[352198215,1738991451411,-500.0,0.00011232,2]
[352198216,1738991451421,-595.45638713,0.00011232,2]
[352198217,1738991451431,-287.6751237,0.00011232,2]
[352198218,1738991451440,-500.0,0.00011232,2]
[352198219,1738991451450,-519.62409493,0.00011232,2]
[352198220,1738991451459,-500.0,0.00011232,2]
[352198221,1738991451468,-511.0141647,0.00011232,2]
[352198222,1738991451478,-515.17112088,0.00011232,2]
[352198223,1738991451487,-500.0,0.00011232,2]
[352198224,1738991451497,-500.0,0.00011232,2]
[352198225,1738991451506,-151.0,0.00011232,2]
[352198226,1738991451516,-500.0,0.00011232,2]
[352198227,1738991451525,-500.0,0.00011232,2]
[352198228,1738991451534,-500.0,0.00011232,2]
[352198229,1738991451544,-500.64885768,0.00011232,2]
[352198230,1738991451553,-500.0,0.00011232,2]
[352198231,1738991451563,-151.0,0.00011232,2]
[352198232,1738991451572,-500.0,0.00011232,2]
[352198233,1738991451582,-500.0,0.00011232,2]
[352198234,1738991451591,-500.0,0.00011232,2]
[352198235,1738991451601,-151.0,0.00011232,2]
[352198236,1738991451611,-500.0,0.00011232,2]
[352198237,1738991451620,-500.0,0.00011232,2]
[352198238,1738991451629,-256.2899064,0.00011232,2]
[352198239,1738991451639,-500.0,0.00011232,2]
[352198240,1738991451649,-500.0,0.00011232,2]
[352198241,1738991451658,-507.0558345,0.00011232,2]
[352198242,1738991451667,-500.0,0.00011232,2]
[352198243,1738991451677,-500.0,0.00011232,2]
[352198244,1738991451686,-503.89414347,0.00011232,2]
[352198245,1738991451695,-500.0,0.00011232,2]
[352198246,1738991451705,-503.18202209,0.00011232,2]
[352198247,1738991451714,-500.0,0.00011232,2]
[352198248,1738991451724,-500.0,0.00011232,2]
[352198249,1738991451734,-849.77,0.00011232,2]
[352198250,1738991451743,-500.0,0.00011232,2]
[352198251,1738991451753,-500.0,0.00011232,2]
[352198252,1738991451763,-500.0,0.00011232,2]
[352198253,1738991451772,-500.0,0.00011232,2]
[352198254,1738991451782,-500.0,0.00011232,2]
[352198255,1738991451791,-503.08147711,0.00011232,2]
[352198256,1738991451800,-500.0,0.00011232,2]
[352198257,1738991451810,-500.0,0.00011232,2]
[352198258,1738991451819,-501.9465053,0.00011232,2]
[352198259,1738991451829,-500.0,0.00011232,2]
[352198260,1738991451838,-500.0,0.00011232,2]
[352198261,1738991451848,-500.0,0.00011232,2]
[352198262,1738991451858,-501.08375953,0.00011232,2]
[352198263,1738991451875,-500.0,0.00011232,2]
[352198264,1738991451885,-502.57529349,0.00011232,2]
[352198265,1738991451896,-1011.76,0.00011232,2]
[352198266,1738991451909,-500.0,0.00011232,2]
[352198267,1738991451919,-500.0,0.00011232,2]
[352198268,1738991451929,-500.0,0.00011232,2]
[352198269,1738991451940,-501.5042611,0.00011232,2]
[352198270,1738991451949,-500.0,0.00011232,2]
[352198271,1738991451959,-500.0,0.00011232,2]
[352198272,1738991451969,-517.71869884,0.00011232,2]
[352198273,1738991451979,-779.14,0.00011232,2]
[352198274,1738991451989,-500.0,0.00011232,2]
[352198275,1738991451999,-500.0,0.00011232,2]
[352198276,1738991452009,-573.40769173,0.00011232,2]
[352198277,1738991452019,-500.0,0.00011232,2]
[352198278,1738991452029,-500.0,0.00011232,2]
[352198279,1738991452038,-500.0,0.00011232,2]
[352198280,1738991452048,-500.0,0.00011232,2]
[352198281,1738991452058,-501.94479604,0.00011232,2]
[352198282,1738991452067,-500.0,0.00011232,2]
[352198283,1738991452077,-503.1296416,0.00011232,2]
[352198284,1738991452086,-593.92,0.00011232,2]
[352198285,1738991452096,-500.0,0.00011232,2]
[352198286,1738991452106,-500.0,0.00011232,2]
[352198287,1738991452115,-620.15232358,0.00011232,2]
[352198288,1738991452124,-500.0,0.00011232,2]
[352198289,1738991452134,-500.0,0.00011232,2]
[352198290,1738991452144,-500.0,0.00011232,2]
[352198291,1738991452153,-500.0,0.00011232,2]
[352198292,1738991452163,-500.0,0.00011232,2]
[352198293,1738991452173,-502.19243531,0.00011232,2]
[352198294,1738991452182,-500.0,0.00011232,2]
[352198295,1738991452192,-500.0,0.00011232,2]
[352198296,1738991452201,-500.0,0.00011232,2]
[352198297,1738991452212,-500.0,0.00011232,2]
[352198298,1738991452222,-500.0,0.00011232,2]
[352198299,1738991452232,-500.0,0.00011232,2]
[352198300,1738991452376,-500.0,0.00011232,2]
[352198301,1738991452387,-500.0,0.00011232,2]
[352198302,1738991452396,-500.0,0.00011232,2]
[352198303,1738991452407,-500.0,0.00011232,2]
[352198304,1738991452416,-500.0,0.00011232,2]
[352198305,1738991452426,-500.0,0.00011232,2]
[352198306,1738991452435,-500.0,0.00011232,2]
[352198307,1738991452445,-500.0,0.00011232,2]
[352198308,1738991452454,-500.0,0.00011232,2]
[352198309,1738991452464,-500.0,0.00011232,2]
[352198310,1738991452473,-500.0,0.00011232,2]
[352198311,1738991452482,-500.0,0.00011232,2]
[352198312,1738991452492,-500.0,0.00011232,2]
[352198313,1738991452501,-500.0,0.00011232,2]
[352198314,1738991452511,-151.0,0.00011232,2]
[352198315,1738991452520,-500.0,0.00011232,2]
[352198316,1738991452530,-500.0,0.00011232,2]
[352198317,1738991452539,-500.0,0.00011232,2]
[352198318,1738991452549,-500.0,0.00011232,2]
[352198319,1738991452559,-559.68631539,0.00011232,2]
[352198320,1738991452568,-500.0,0.00011232,2]
[352198321,1738991452577,-500.0,0.00011232,2]
[352198322,1738991452587,-275.534378,0.00011232,2]
[352198323,1738991452596,-500.0,0.00011232,2]
[352198324,1738991452606,-1290.85,0.00011232,2]
[352198325,1738991452615,-500.0,0.00011232,2]
[352198326,1738991452625,-153.530157,0.00011232,2]
[352198327,1738991452634,-500.0,0.00011232,2]
[352198328,1738991452644,-500.0,0.00011232,2]
[352198329,1738991452653,-151.0,0.00011232,2]
[352198330,1738991452663,-500.0,0.00011232,2]
[352198331,1738991452672,-500.0,0.00011232,2]
[352198332,1738991452682,-500.0,0.00011232,2]
[352198333,1738991452691,-1322.28,0.00011232,2]
[352198334,1738991452700,-366.35790411,0.00011232,2]
[352198335,1738991452709,-954.32,0.00011232,2]
[352198336,1738991452719,-500.0,0.00011232,2]
[352198337,1738991452728,-500.0,0.00011232,2]
[352198338,1738991452737,-500.0,0.00011232,2]
[352198339,1738991452747,-506.20845166,0.00011232,2]
[352198340,1738991452756,-364.180945,0.00011232,2]
[352198341,1738991452765,-263.770372,0.00011232,2]
[352198342,1738991452775,-500.0,0.00011232,2]
[352198343,1738991452784,-263.770372,0.00011232,2]
[352198344,1738991452794,-500.0,0.00011232,2]
[352198345,1738991452803,-500.0,0.00011232,2]
[352198346,1738991452812,-500.0,0.00011232,2]
[352198347,1738991452821,-365.39215376,0.00011232,2]
[352198348,1738991452830,-500.0,0.00011232,2]
[352198349,1738991452839,-500.0,0.00011232,2]
[352198350,1738991452849,-508.86808716,0.00011232,2]
[352198351,1738991452858,-364.88586514,0.00011232,2]
[352198352,1738991452867,-513.56787768,0.00011232,2]
[352198353,1738991452877,-500.0,0.00011232,2]
[352198354,1738991452886,-890.41,0.00011232,2]
[352198355,1738991452896,-500.0,0.00011232,2]
[352198356,1738991452906,-500.0,0.00011232,2]
[352198357,1738991452917,-503.30559727,0.00011232,2]
[352198358,1738991452928,-500.0,0.00011232,2]
[352198359,1738991452937,-500.0,0.00011232,2]
[352198360,1738991452946,-500.0,0.00011232,2]
[352198361,1738991452956,-500.0,0.00011232,2]
[352198362,1738991452966,-500.0,0.00011232,2]
[352198363,1738991452976,-500.0,0.00011232,2]
[352198364,1738991452985,-500.0,0.00011232,2]
[352198365,1738991452995,-500.0,0.00011232,2]
[352198366,1738991453004,-500.0,0.00011232,2]
[352198367,1738991453014,-579.96,0.00011232,2]
[352198368,1738991453023,-500.0,0.00011232,2]
[352198369,1738991453033,-500.0,0.00011232,2]
[352198370,1738991453042,-151.0,0.00011232,2]
[352198371,1738991453051,-500.0,0.00011232,2]
[352198372,1738991453060,-500.0,0.00011232,2]
[352198373,1738991453069,-151.0,0.00011232,2]
[352198374,1738991453079,-500.0,0.00011232,2]
[352198375,1738991453088,-500.0,0.00011232,2]
[352198376,1738991453098,-500.0,0.00011232,2]
[352198377,1738991453107,-502.52935587,0.00011232,2]
[352198378,1738991453117,-151.0,0.00011232,2]
[352198379,1738991453127,-151.0,0.00011232,2]
[352198380,1738991453136,-519.856791,0.00011232,2]
[352198381,1738991453146,-500.0,0.00011232,2]
[352198382,1738991453155,-519.856791,0.00011232,2]
[352198383,1738991453164,-1275.48,0.00011232,2]
[352198384,1738991453173,-500.0,0.00011232,2]
[352198385,1738991453183,-500.0,0.00011232,2]
[352198386,1738991453194,-500.0,0.00011232,2]
[352198387,1738991453203,-2653.48,0.00011232,2]
[352198388,1738991453214,-500.0,0.00011232,2]
[352198389,1738991453223,-151.0,0.00011232,2]
[352198390,1738991453232,-567.88342277,0.00011232,2]
[352198391,1738991453241,-369.71664792,0.00011232,2]
[352198392,1738991453251,-1536.82,0.00011232,2]
[352198393,1738991453260,-500.0,0.00011232,2]
[352198394,1738991453270,-500.0,0.00011232,2]
[352198395,1738991453279,-500.0,0.00011232,2]
[352198396,1738991453289,-500.0,0.00011232,2]
[352198397,1738991453299,-866.25,0.00011232,2]
[352198398,1738991453308,-500.0,0.00011232,2]
[352198399,1738991453317,-500.0,0.00011232,2]
[352198400,1738991453326,-500.0,0.00011232,2]
[352198401,1738991453335,-658.86,0.00011232,2]
[352198402,1738991453344,-500.0,0.00011232,2]
[352198403,1738991453353,-500.0,0.00011232,2]
[352198404,1738991453363,-939.42,0.00011232,2]
[352198405,1738991453372,-194.08829775,0.00011232,2]
[352198406,1738991453382,-500.0,0.00011232,2]
[352198407,1738991453391,-503.9853436,0.00011232,2]
[352198408,1738991453401,-1115.0,0.00011232,2]
[352198409,1738991453411,-500.0,0.00011232,2]
[352198410,1738991453420,-500.0,0.00011232,2]
[352198411,1738991453430,-500.0,0.00011232,2]
[352198412,1738991453439,-596.66,0.00011232,2]
[352198413,1738991453449,-1320.42,0.00011232,2]
[352198414,1738991453458,-503.38356112,0.00011232,2]
[352198415,1738991453467,-500.0,0.00011232,2]
[352198416,1738991453476,-500.0,0.00011232,2]
[352198417,1738991453485,-1026.56,0.00011232,2]
[352198418,1738991453495,-151.0,0.00011232,2]
[352198419,1738991453504,-500.0,0.00011232,2]
[352198420,1738991453514,-2631.16,0.00011232,2]
[352198421,1738991453524,-500.0,0.00011232,2]
[352198422,1738991453534,-500.0,0.00011232,2]
[352198423,1738991453546,-500.0,0.00011232,2]
[352198424,1738991453556,-501.47443994,0.00011232,2]
[352198425,1738991453566,-862.34,0.00011232,2]
[352198426,1738991453576,-500.0,0.00011232,2]
[352198427,1738991453586,-500.0,0.00011232,2]
[352198428,1738991453596,-500.0,0.00011232,2]
[352198429,1738991453606,-1146.43,0.00011232,2]
[352198430,1738991453615,-500.0,0.00011232,2]
[352198431,1738991453624,-503.89976115,0.00011232,2]
[352198432,1738991453633,-500.0,0.00011232,2]
[352198433,1738991453643,-658.88,0.00011232,2]
[352198434,1738991453653,-1093.05,0.00011232,2]
[352198435,1738991453664,-500.0,0.00011232,2]
[352198436,1738991453676,-500.0,0.00011232,2]
[352198437,1738991453685,-538.64,0.00011232,2]
[352198438,1738991453694,-10260.36,0.00011232,2]
[352198439,1738991453704,-500.0,0.00011232,2]
[352198440,1738991453713,-500.0,0.00011232,2]
[352198441,1738991453722,-39166.59,0.00011232,2]
[352198442,1738991453731,-170.60188658,0.00011232,2]
[352198443,1738991453741,-3134.99,0.00011232,2]
[352198444,1738991453750,-503.21086682,0.00011232,2]
[352198445,1738991453760,-500.0,0.00011232,2]
[352198446,1738991453769,-505.08,0.00011232,2]
[352198447,1738991453778,-500.0,0.00011232,2]
[352198448,1738991453787,-500.0,0.00011232,2]
[352198449,1738991453796,-500.0,0.00011232,2]
[352198450,1738991453805,-500.0,0.00011232,2]
[352198451,1738991453814,-516.75675922,0.00011232,2]
[352198452,1738991453823,-1635.22,0.00011232,2]
[352198453,1738991453832,-1523.95,0.00011232,2]
[352198454,1738991453842,-500.0,0.00011232,2]
[352198455,1738991453851,-500.0,0.00011232,2]
[352198456,1738991453860,-414.49201045,0.00011232,2]
[352198457,1738991453870,-500.0,0.00011232,2]
[352198458,1738991453879,-696.42,0.00011232,2]
[352198459,1738991453888,-473.179652,0.00011232,2]
[352198460,1738991453897,-502.21787482,0.00011232,2]
[352198461,1738991453908,-921.78,0.00011232,2]
[352198462,1738991453919,-500.0,0.00011232,2]
[352198463,1738991453929,-473.179652,0.00011232,2]
[352198464,1738991453939,-500.0,0.00011232,2]
[352198465,1738991453949,-1122.19,0.00011232,2]
[352198466,1738991453961,-500.0,0.00011232,2]
[352198467,1738991453971,-500.0,0.00011232,2]
[352198468,1738991453980,-635.87,0.00011232,2]
[352198469,1738991453991,-500.77310309,0.00011232,2]
[352198470,1738991454001,-500.0,0.00011232,2]
[352198471,1738991454010,-500.0,0.00011232,2]
[352198472,1738991454020,-155.275993,0.00011232,2]
[352198473,1738991454030,-155.275993,0.00011232,2]
[352198474,1738991454039,-500.0,0.00011232,2]
[352198475,1738991454049,-500.0,0.00011232,2]
[352198476,1738991454059,-502.19880338,0.00011232,2]
[352198477,1738991454068,-500.0,0.00011232,2]
[352198478,1738991454076,-500.0,0.00011232,2]
[352198479,1738991454085,-155.275993,0.00011232,2]
[352198480,1738991454094,-155.275993,0.00011232,2]
[352198481,1738991454104,-686.01,0.00011232,2]
[352198482,1738991454113,-500.0,0.00011232,2]
[352198483,1738991454122,-500.0,0.00011232,2]
[352198484,1738991454131,-503.56031213,0.00011232,2]
[352198485,1738991454140,-218.1979383,0.00011232,2]
[352198486,1738991454150,-500.0,0.00011232,2]
[352198487,1738991454159,-500.0,0.00011232,2]
[352198488,1738991454169,-500.0,0.00011232,2]
[352198489,1738991454179,-551.38985009,0.00011232,2]
[352198490,1738991454189,-500.0,0.00011232,2]
[352198491,1738991454198,-500.0,0.00011232,2]
[352198492,1738991454207,-500.0,0.00011232,2]
[352198493,1738991454217,-500.0,0.00011232,2]
[352198494,1738991454226,-500.0,0.00011232,2]
[352198495,1738991454235,-500.0,0.00011232,2]
[352198496,1738991454246,-500.0,0.00011232,2]
[352198497,1738991454255,-505.92371965,0.00011232,2]
[352198498,1738991454264,-500.0,0.00011232,2]
[352198499,1738991454273,-500.0,0.00011232,2]
[352198500,1738991454282,-500.0,0.00011232,2]
[352198501,1738991454291,-1370.62,0.00011232,2]
[352198502,1738991454300,-170.20082998,0.00011232,2]
[352198503,1738991454309,-570.19,0.00011232,2]
[352198504,1738991454318,-500.0,0.00011232,2]
[352198505,1738991454327,-501.36482393,0.00011232,2]
[352198506,1738991454336,-500.0,0.00011232,2]
[352198507,1738991454345,-500.0,0.00011232,2]
[352198508,1738991454354,-985.03,0.00011232,2]
[352198509,1738991454363,-2173.41,0.00011232,2]
[352198510,1738991454374,-500.0,0.00011232,2]
[352198511,1738991454384,-500.0,0.00011232,2]
[352198512,1738991454393,-2448.18,0.00011232,2]
[352198513,1738991454402,-192.4138,0.00011232,2]
[352198514,1738991454412,-192.4138,0.00011232,2]
[352198515,1738991454421,-192.4138,0.00011232,2]
[352198516,1738991454431,-192.4138,0.00011232,2]
[352198517,1738991454443,-4445.89,0.00011232,2]
[352198518,1738991454453,-500.0,0.00011232,2]
[352198519,1738991454463,-500.0,0.00011232,2]
[352198520,1738991454472,-151.0,0.00011232,2]
[352198521,1738991454482,-598.62,0.00011232,2]
[352198522,1738991454491,-153.543592,0.00011232,2]
[352198523,1738991454500,-500.0,0.00011232,2]
[352198524,1738991454509,-503.12982092,0.00011232,2]
[352198525,1738991454521,-502.34522757,0.00011232,2]
[352198526,1738991454531,-812.58,0.00011232,2]
[352198527,1738991454540,-1267.06,0.00011232,2]
[352198528,1738991454552,-500.0,0.00011232,2]
[352198529,1738991454561,-500.0,0.00011232,2]
[352198530,1738991454571,-500.0,0.00011232,2]
[352198531,1738991454581,-500.0,0.00011232,2]
[352198532,1738991454590,-500.0,0.00011232,2]
[352198533,1738991454599,-500.0,0.00011232,2]
[352198534,1738991454608,-500.0,0.00011232,2]
[352198535,1738991454618,-500.0,0.00011232,2]
[352198536,1738991454627,-501.18953021,0.00011232,2]
[352198537,1738991454636,-507.93299252,0.00011232,2]
[352198538,1738991454645,-500.0,0.00011232,2]
[352198539,1738991454654,-920.4,0.00011232,2]
[352198540,1738991454663,-500.0,0.00011232,2]
[352198541,1738991454780,-500.0,0.00011232,2]
[352198542,1738991454789,-3402.67,0.00011232,2]
[352198543,1738991454799,-500.0,0.00011232,2]
[352198544,1738991454808,-500.0,0.00011232,2]
[352198545,1738991454817,-500.0,0.00011232,2]
[352198546,1738991454826,-1084.22,0.00011232,2]
[352198547,1738991454836,-500.0,0.00011232,2]
[352198548,1738991454845,-530.66,0.00011232,2]
[352198549,1738991454854,-500.0,0.00011232,2]
[352198550,1738991454864,-500.0,0.00011232,2]
[352198551,1738991454873,-520.2,0.00011232,2]
[352198552,1738991454885,-500.0,0.00011232,2]
[352198553,1738991454896,-583.81,0.00011232,2]
[352198554,1738991454907,-500.0,0.00011232,2]
[352198555,1738991454920,-500.0,0.00011232,2]
[352198556,1738991454929,-506.38679745,0.00011232,2]
[352198557,1738991454938,-500.0,0.00011232,2]
[352198558,1738991454948,-2334.23,0.00011232,2]
[352198559,1738991454959,-500.0,0.00011232,2]
[352198560,1738991454968,-500.0,0.00011232,2]
[352198561,1738991454977,-2755.31,0.00011232,2]
[352198562,1738991454988,-11974.57,0.00011232,2]
[352198563,1738991454998,-500.0,0.00011232,2]
[352198564,1738991455008,-500.0,0.00011232,2]
[352198565,1738991455017,-500.0,0.00011232,2]
[352198566,1738991455027,-2955.85111631,0.00011269,2]
[352198567,1738991455036,-500.80939417,0.000113,2]
[352198568,1738991455046,-354.6875562,0.000113,2]
[352198569,1738991455055,-500.0,0.00011305,2]
[352198570,1738991455064,-12553.948879,0.00011307,2]
[352198571,1738991455074,-245.891828,0.0001136,2]
[352198572,1738991455083,-245.891828,0.00011369,2]
[352198573,1738991455093,-500.0,0.00011369,2]
[352198574,1738991455102,-500.0,0.00011369,2]
[352198575,1738991455111,-500.0,0.00011369,2]
[352198576,1738991455121,-500.0,0.00011369,2]
[352198577,1738991455131,-502.34651418,0.00011369,2]
[352198578,1738991455140,-151.770735,0.00011369,2]
[352198579,1738991455150,-500.0,0.00011369,2]
[352198580,1738991455160,-500.0,0.00011369,2]
[352198581,1738991455170,-500.0,0.00011369,2]
[352198582,1738991455180,-503.8633671,0.00011369,2]
[352198583,1738991455190,-151.0,0.00011369,2]
[352198584,1738991455199,-175.36268,0.00011369,2]
[352198585,1738991455210,-151.0,0.00011369,2]
[352198586,1738991455220,-503.4108298,0.00011369,2]
[352198587,1738991455230,-500.0,0.00011369,2]
[352198588,1738991455240,-500.0,0.00011369,2]
[352198589,1738991455249,-500.0,0.00011369,2]
[352198590,1738991455259,-500.0,0.00011369,2]
[352198591,1738991455268,-500.0,0.00011369,2]
[352198592,1738991455278,-500.0,0.00011369,2]
[352198593,1738991455288,-500.0,0.00011369,2]
[352198594,1738991455297,-357.44455978,0.00011369,2]
[352198595,1738991455306,-500.0,0.00011369,2]
[352198596,1738991455315,-503.1723947,0.00011369,2]
[352198597,1738991455325,-151.0,0.00011369,2]
[352198598,1738991455335,-500.0,0.00011369,2]
[352198599,1738991455344,-526.76913379,0.00011369,2]
[352198600,1738991455353,-500.0,0.00011369,2]
[352198601,1738991455363,-151.0,0.00011369,2]
[352198602,1738991455372,-409.18946355,0.00011369,2]
[352198603,1738991455381,-500.0,0.00011369,2]
[352198604,1738991455390,-500.0,0.00011369,2]
[352198605,1738991455400,-500.0,0.00011369,2]
[352198606,1738991455410,-151.0,0.00011369,2]
[352198607,1738991455419,-500.0,0.00011369,2]
[352198608,1738991455428,-500.0,0.00011369,2]
[352198609,1738991455438,-501.45372425,0.00011369,2]
[352198610,1738991455447,-500.0,0.00011369,2]
[352198611,1738991455457,-508.26117521,0.00011369,2]
[352198612,1738991455466,-500.0,0.00011369,2]
[352198613,1738991455475,-500.0,0.00011369,2]
[352198614,1738991455484,-849.77,0.00011369,2]
[352198615,1738991455493,-505.49781623,0.00011369,2]
[352198616,1738991455503,-500.0,0.00011369,2]
[352198617,1738991455512,-413.58964998,0.00011369,2]
[352198618,1738991455521,-500.0,0.00011369,2]
[352198619,1738991455532,-500.0,0.00011369,2]
[352198620,1738991455542,-500.0,0.00011369,2]
[352198621,1738991455551,-500.0,0.00011369,2]
[352198622,1738991455560,-500.0,0.00011369,2]
[352198623,1738991455570,-502.35354507,0.00011369,2]
[352198624,1738991455579,-1011.76,0.00011369,2]
[352198625,1738991455589,-500.0,0.00011369,2]
[352198626,1738991455598,-500.0,0.00011369,2]
[352198627,1738991455607,-500.0,0.00011369,2]
[352198628,1738991455616,-504.41216816,0.00011369,2]
[352198629,1738991455626,-500.0,0.00011369,2]
[352198630,1738991455635,-779.14,0.00011369,2]
[352198631,1738991455644,-500.0,0.00011369,2]
[352198632,1738991455653,-624.27817249,0.00011369,2]
[352198633,1738991455662,-500.0,0.00011369,2]
[352198634,1738991455671,-500.0,0.00011369,2]
[352198635,1738991455681,-509.49316727,0.00011369,2]
[352198636,1738991455690,-500.0,0.00011369,2]
[352198637,1738991455699,-423.42867661,0.00011369,2]
[352198638,1738991455708,-593.92,0.00011369,2]
[352198639,1738991455717,-500.0,0.00011369,2]
[352198640,1738991455727,-150.03886606,0.00011369,2]
[352198641,1738991455736,-500.0,0.00011369,2]
[352198642,1738991455746,-500.0,0.00011369,2]
[352198643,1738991455755,-506.12495643,0.00011369,2]
[352198644,1738991455765,-500.0,0.00011369,2]
[352198645,1738991455775,-500.0,0.00011369,2]
[352198646,1738991455784,-500.0,0.00011369,2]
[352198647,1738991455794,-502.10651484,0.00011369,2]
[352198648,1738991455803,-500.0,0.00011369,2]
[352198649,1738991455812,-500.0,0.00011369,2]
[352198650,1738991455822,-500.0,0.00011369,2]
[352198651,1738991455831,-500.0,0.00011369,2]
[352198652,1738991455840,-500.0,0.00011369,2]
[352198653,1738991455857,-500.0,0.00011369,2]
[352198654,1738991455872,-589.6555947,0.00011369,2]
[352198655,1738991455886,-500.0,0.00011369,2]
[352198656,1738991455904,-501.55619176,0.00011369,2]
[352198657,1738991455921,-500.0,0.00011369,2]
[352198658,1738991455935,-500.0,0.00011369,2]
[352198659,1738991455951,-500.0,0.00011369,2]
[352198660,1738991455965,-500.0,0.00011369,2]